Cogmind - Beta 14 X2 @@@ ROGUE MODE // 2024.08.01 @ 14:45:01 Player: Minty Result: Destroyed by S-10 Pest with Light Assault Rifle Performance ------------- Evolutions (0) 0 Regions Visited (2) 400 Robots Destroyed (18) 90 Value Destroyed (301) 301 Prototype IDs (1) 20 Alien Tech Used (0) 0 Bonus (0) 0 TOTAL SCORE: 811 Bonus ------- None Cogmind --------- Core Integrity 0/250 Matter 210/300 Energy 265/265 System Corruption 0% Temperature Cool (36) Movement Rolling (135) Ox3 Location -10/Mines Parts ------- > --- POWER (1) -------- Improved Ion Engine > --- PROPULSION (2) --- Wheel Compact Wheel > --- UTILITY (2) ------ Huge Storage Unit Visual Processing Unit > --- WEAPON (2) ------- Improved Medium Laser Improved Medium Laser > --- INVENTORY (25) --- Improved Ion Engine Improved Ion Engine Small Storage Unit Improved Medium Laser Improved Medium Laser Rocket Launcher Rocket Launcher Rocket Launcher Rocket Launcher Peak State ------------ > --- POWER ------------ Improved Ion Engine > --- PROPULSION ------- Wheel Compact Wheel > --- UTILITY ---------- Small Storage Unit Visual Processing Unit > --- WEAPON ----------- Improved Medium Laser Improved Medium Laser > --- INVENTORY -------- Light Treads Light Treads Small Storage Unit Huge Storage Unit Tractor Beam Improved Medium Laser Improved Medium Laser Beam Cannon [Rating: 14] Favorites ----------- Power Light Ion Engine Engine Light Ion Engine Propulsion Wheel Leg Aluminum Leg Wheel Wheel Utility Visual Processing Unit Storage Small Storage Unit Processor Visual Processing Unit Weapon Assault Rifle Energy Gun Improved Medium Laser Ballistic Gun Assault Rifle Launcher Rocket Launcher Build | -11 -10 -10 ------- Run | Yrd Mat Min Slots Evolved . | . . . Power . | . . . Propulsion . | . . . Utility . | . . . Weapon . | . . . Parts Attached 13 | . 13 . Power 2 | . 2 . Engine 2 | . 2 . Core . | . . . Reactor . | . . . Propulsion 2 | . 2 . Treads . | . . . Leg . | . . . Wheel 2 | . 2 . Hover . | . . . Flight . | . . . Utility 3 | . 3 . Device . | . . . Storage 1 | . 1 . Processor 2 | . 2 . Hackware . | . . . Protection . | . . . Artifact . | . . . Weapon 6 | . 6 . Energy Gun 5 | . 5 . Energy Cannon . | . . . Ballistic Gun . | . . . Ballistic Cannon . | . . . Launcher 1 | . 1 . Special Weapon . | . . . Impact Weapon . | . . . Slashing Weapon . | . . . Piercing Weapon . | . . . Special Melee Weapon . | . . . Unidentified Prototypes 1 | . 1 . Parts Lost 2 | . 2 . Power 1 | . 1 . Propulsion . | . . . Utility . | . . . Weapon 1 | . 1 . Highest Loss Streak 2 | . 2 . To Critical Strikes . | . . . Average Slot Usage (%) 95 | . 94 100 Engine 12 | . 12 14 Leg 7 | . 7 . Wheel 20 | . 19 28 Storage 14 | . 14 14 Processor 11 | . 11 14 Energy Gun 11 | . 10 28 Ballistic Gun 15 | . 16 . Naked Turns . | . . . Heaviest Build 93 | 12 93 . Greatest Support 26 | 20 26 . Greatest Overweight (x) 3 | . 3 . Average Overweight (x) . | . . . Largest Inventory Capacity 25 | 8 25 25 Average Capacity 12 | 8 12 25 Most Carried 10 | 6 10 9 Average Carried 7 | 6 7 9 Final Capacity 25 | 8 25 25 Final Carried 9 | 6 9 9 Class Distribution -------------------- 100% | Mutant Dominant Class ---------------- Mutant | -10/Materials Mutant | -10/Mines Resources | -11 -10 -10 ----------- Run | Yrd Mat Min Matter Collected 490 | 188 302 . Remotely . | . . . Salvage Created 350 | . 338 12 Parts 27 | . 25 2 Haulers Intercepted . | . . . Recyclers Shooed . | . . . Parts Field Recycled . | . . . Retrieved Matter . | . . . Parts Self-Destructed . | . . . Prevented . | . . . Kills | -11 -10 -10 ------- Run | Yrd Mat Min Combat Hostiles Destroyed 11 | . 10 1 Guns 8 | . 7 1 AOE 3 | . 3 . Classes Destroyed 5 | . 5 . Worker 4 | . 4 . Recycler 1 | . 1 . Watcher 2 | . 2 . Swarmer 7 | . 6 1 Grunt 4 | . 4 . Best Kill Streak 8 | . 8 1 Combat Bots Only 3 | . 3 1 Max Kills in Single Turn 3 | . 3 1 Gunslinging . | . . . Exploded 1 | . 1 . Melee . | . . . Uniques/NPCs Destroyed . | . . . Combat | -11 -10 -10 -------- Run | Yrd Mat Min Hostile Shots Fired 66 | . 63 3 Missed 14 | . 14 . Damage Taken 736 | . 714 22 Core 255 | . 240 15 Absorbed by Shields . | . . . Core Remaining (%) 100 | 100 . . Volleys Fired 46 | . 45 1 Largest 2 | . 2 2 Hottest 112 | . 112 112 Shots Fired 84 | . 82 2 Gun 80 | . 78 2 Cannon . | . . . Launcher 4 | . 4 . Special . | . . . Kinetic 72 | . 72 . Thermal 4 | . 2 2 Explosive 4 | . 4 . Electromagnetic 4 | . 4 . Robot Hit Streak 7 | . 7 1 Robot Miss Streak 5 | . 5 1 Penetration Max . | . . . Secondary Targets 2 | . 1 1 Max Gunslinging Chain 1 | . 1 1 Shots Hit Robots 48 | . 47 1 Core Hits 25 | . 24 1 Critical Kills . | . . . Critical Parts Destroyed . | . . . Critical Strikes . | . . . Melee Attacks . | . . . Impact . | . . . Slashing . | . . . Piercing . | . . . Sneak Attacks . | . . . Combat Hostiles . | . . . Follow-up Attacks . | . . . Damage Inflicted 1107 | . 1089 18 Guns 602 | . 584 18 Cannons . | . . . Explosions 505 | . 505 . Melee . | . . . Ramming . | . . . Kinetic 532 | . 532 . Thermal 50 | . 32 18 Explosive 473 | . 473 . Electromagnetic 52 | . 52 . Impact . | . . . Slashing . | . . . Piercing . | . . . Highest Corruption . | . . . Average Corruption . | . . . Corruption Purged . | . . . Corruption Blocked . | . . . Overload Shots . | . . . Overflow Damage 18 | . 18 . Projectiles . | . . . Explosions 18 | . 18 . Melee . | . . . Knockbacks . | . . . Impact . | . . . Kinetic . | . . . Secondary . | . . . Self-Inflicted Damage 155 | . 155 . Shots 3 | . 3 . Rammed . | . . . Targets Rammed . | . . . Kicked . | . . . Crushed . | . . . Highest Temperature 54 | . 54 36 Average Temperature 17 | . 16 27 Received Heat Transfer 249 | . 249 . Siege Activations . | . . . Robots Corrupted . | . . . Combat Hostiles . | . . . Parts Fried . | . . . Impact Corruptions . | . . . Robots Melted . | . . . Combat Hostiles . | . . . Parts Melted . | . . . Heat Transferred 87 | . 50 37 Parts Sabotaged . | . . . Parts Stolen . | . . . Parts Stripped . | . . . Power Chain Reactions 1 | . 1 . Alert | -11 -10 -10 ------- Run | Yrd Mat Min Peak Influence 453 | . 453 139 Initial 104 | . . 104 Average 167 | . 169 131 Maximum Alert Level 2 | . 2 . Low Security (%) 60 | 100 59 100 Level 1 37 | . 37 . Level 2 2 | . 2 . Level 3 . | . . . Level 4 . | . . . Level 5 . | . . . High Security . | . . . Max Security . | . . . Squads Dispatched 2 | . 2 . Investigation 1 | . 1 . Extermination . | . . . Reinforcement 1 | . 1 . Assault . | . . . Garrison . | . . . Intercept . | . . . Searches Triggered . | . . . Construction Impeded . | . . . Haulers Reinforced . | . . . Active Scanning Responses . | . . . Cargo Convoy Interrupts . | . . . Stealth | -11 -10 -10 --------- Run | Yrd Mat Min Distress Signals 2 | . 2 . Communications Jammed . | . . . Distress Signals . | . . . Times Spotted 19 | . 17 2 Peak Tracking Total 4 | . 4 2 Tactical Retreats . | . . . Traps | -11 -10 -10 ------- Run | Yrd Mat Min Traps Triggered 1 | . 1 . Indirectly . | . . . Trap Hack Attempts . | . . . Triggered . | . . . Disarmed . | . . . Reprogrammed . | . . . Reused . | . . . Traps Extracted . | . . . Installed . | . . . Triggered . | . . . Machines | -11 -10 -10 ---------- Run | Yrd Mat Min Machines Disabled 4 | . 4 . Max in Single Turn 2 | . 2 . Machines Repaired . | . . . Machines Dismantled . | . . . Machines Sabotaged . | . . . Overloaded Fab Kills . | . . . Hacking | -11 -10 -10 --------- Run | Yrd Mat Min Machines Accessed 2 | . 2 . Terminals 2 | . 2 . Fabricators . | . . . Repair Stations . | . . . Recycling Units . | . . . Scanalyzers . | . . . Garrison Access . | . . . Total Hacks 7 | . 7 . Successful 1 | . 1 . Failed 6 | . 6 . Catastrophic 2 | . 2 . Database Lockouts . | . . . Manual 6 | . 6 . Terminals 7 | . 7 . Fabricators . | . . . Repair Stations . | . . . Recycling Units . | . . . Scanalyzers . | . . . Garrison Access . | . . . Terminal Hacks 1 | . 1 . Alert Level 1 | . 1 . Fabricator Hacks . | . . . Repair Station Hacks . | . . . Recycling Unit Hacks . | . . . Scanalyzer . | . . . Garrison Access Hacks . | . . . Unauthorized Hacks . | . . . Terminals . | . . . Fabricators . | . . . Repair Stations . | . . . Recycling Units . | . . . Scanalyzers . | . . . Garrison Access . | . . . Data Cores Recovered . | . . . Used . | . . . Hacking Detections 2 | . 2 . Full Trace Events 1 | . 1 . Feedback Events . | . . . Feedback Blocked . | . . . Robot Schematics Acquired . | . . . Robots Built . | . . . Authchips . | . . . Time . | . . . Total Robot Build Rating . | . . . Part Schematics Acquired . | . . . Parts Built . | . . . Authchips . | . . . Time . | . . . Total Part Build Rating . | . . . Parts Repaired . | . . . Time . | . . . Parts Recycled . | . . . Recycled Matter . | . . . Retrieved Matter . | . . . Retrieved Components . | . . . Parts Scanalyzed . | . . . Part Schematics Acquired . | . . . Parts Damaged . | . . . Bothacking | -11 -10 -10 ------------ Run | Yrd Mat Min Used RIF Installer . | . . . Robots Hacked . | . . . Non-combat . | . . . Combat . | . . . Robot Hacks Applied . | . . . Relay Couplers Released . | . . . Fabnet Peak Effective % . | . . . Robots Rewired . | . . . Allies Hacked . | . . . Hacks Repelled . | . . . Allies | -11 -10 -10 -------- Run | Yrd Mat Min Total Allies . | . . . Largest Group . | . . . Highest-Rated Group . | . . . Highest-Rated Ally . | . . . Total Orders . | . . . Ally Attacks . | . . . Total Damage . | . . . Kills . | . . . Allies Corrupted . | . . . Allies Melted . | . . . Intel | -11 -10 -10 ------- Run | Yrd Mat Min Robot Analysis Total . | . . . Derelict Logs Recovered . | . . . Drone Launches . | . . . Drone Recoveries . | . . . Exploration | -11 -10 -10 ------------- Run | Yrd Mat Min Turns Passed 509 | 6 501 2 Spaces Moved 279 | 5 274 . Core . | . . . Treads . | . . . Legs 82 | 5 77 . Wheels 197 | . 197 . Hover . | . . . Flight . | . . . Fastest Speed 90 | 120 90 . Average Speed 113 | 120 113 . Slowest Speed 135 | 120 135 . Overloaded Moves . | . . . Propulsion Burnouts . | . . . Robots Hopped . | . . . Cave-ins Triggered . | . . . Exploration Rate (%) 21 | 2 57 4 Regions Visited 2 Branch Regions 1 Pre-discovered Areas . | . . . Known Exits Taken . | . . . Unknown Exits Taken 2 | 1 1 . Scrap Searched . | . . . Spaces Dug . | . . . Terrain Destroyed 90 | . 90 . Melee . | . . . Projectile . | . . . AOE 90 | . 90 . Terrain Rammed . | . . . Walls Destroyed . | . . . Machines Disabled . | . . . Actions | -11 -10 -10 --------- Run | Yrd Mat Min Total 390 | 5 384 1 Wait 31 | 1 30 . Move 277 | 4 273 . Hop . | . . . Pick Up 13 | . 13 . Fast Attach 1 | . 1 . Attach 5 | . 5 . Detach 1 | . 1 . Swap 7 | . 7 . Drop 9 | . 9 . Fire 46 | . 45 1 Melee . | . . . Ram . | . . . Kick . | . . . Crush . | . . . Escape Stasis . | . . . Rewire . | . . . Trap . | . . . Miscellaneous . | . . . Route ------- -11/Scrapyard -10/Materials -10/Mines History --------- Turn | Location | Event 2 | -11/Scrapyard | Discovered new exit (range 3) 7 | -11/Scrapyard | Entered Materials 251 | -10/Materials | Core integrity fell below 50% 307 | -10/Materials | Build established: Mutant 395 | -10/Materials | Core integrity fell below 20% 493 | -10/Materials | Discovered new exit (range 12) 508 | -10/Materials | Entered Mines 510 | -10/Mines | Destroyed by S-10 Pest with Light Assault Rifle Last Messages --------------- 00411_ T-07 Excavator is excavating. 00411_ K-01 Serf collects debris. 00412_ The unstable cave ceiling collapses. 00412_ U-05 Engineer lays Concrete. 00416_ K-01 Serf collects debris. 00436_ Connecting with Terminal... >>Alert(Check) Current Alert Level: 1-J 00456_ The unstable cave ceiling collapses. 00484_ T-07 Excavator is excavating. 00492_ Triggered Alarm Trap. 00492_ An alarm sounds. 00492_ ALERT: Alarm triggered, dispatching investigation squad. 00492_ T-07 Excavator is excavating. 00493_ EXIT=FOUND 00497_ T-07 Excavator is excavating. LOCATION=UNKNOWN GOAL=ESCAPE 00508_ S-10 Pest destroyed. 00508_ Switching to secondary target: S-10 Pest. Map ----- +----------------------------------------------------+ | ?????????????????????????????????????????????????? | | ?????????????????????????????????????????????????? | | ?????????????????????????????????????????????????? | | ?????????????????????????????????????????????????? | | ?????????????????????????????????????????????????? | | ?????????????????????????????????????????????????? | | ?????????????????????????????????????????????????? | | ?????????????????????????????????????????????????? | | ??????????????????????? ?????????????????????????? | | ??????????????????????? ????????????????????????? | | ??????????????????????? ????????????????????????? | | ??????????????????????? ????????????????????????? | | ???????????????????????# ????????????????????????? | | ???????????????????????#$????????????????????????? | | ???????????????????????# ????????????????????????? | | ??????????????????????? ????????????????????????? | | ???????????????????????# ????????????????????????? | | ???????????????????????# ##??????????????????????? | | ???????????????????????# ??????????????????????? | | ???????????????????????# ??????????????????????? | | ???????????????????????# #??????????????????????? | | ???????????????????????# #??????????????????????? | | ???????????????????????# #??????????????????????? | | ?????????????????????### ###????????????????????? | | ?????????????????????# #????????????????????? | | ?????????????????????# s%@ #????????????????????? | | ?????????????????????# s #????????????????????? | | ?????????????????????# #????????????????????? | | ?????????????????????# #????????????????????? | | ?????????????????????# #????????????????????? | | ?????????????????????########????????????????????? | | ?????????????????????????????????????????????????? | | ?????????????????????????????????????????????????? | | | | | | | | | | | | | | | | | | | | | | | | | | | | | | | | | | | +----------------------------------------------------+ Best States ------------- Heat Dissipation 25 Energy Generation 12 Energy Capacity 265 Matter Stores 288 Matter Capacity 300 Sight Range 18 Terrain Scan Density 10 Evasion (%) 55 Item Schematics ----------------- None Robot Schematics ------------------ None Fabricated ------------ Nothing Alien Tech Used ----------------- None Achievements -------------- None Challenges ------------ None Game ------ Seed AngularNuclearImmobilizer Manual? 0 Play Time 00:06:11 Cumulative 827.3 hours Start 2024.08.01 @ 14:32:38 End 2024.08.01 @ 14:45:01 Sessions 1 Manual Loads 0 Difficulty Rogue Special Mode None Game No. 982 Rogue 703 Adventurer 124 Explorer 155 Win Type - Total 34 Types 27/0/5/1/0/0/0/1/0 Lore% 67 Gallery% 88 Achievement% 78 Wizard Run 0 Options --------- Layout 0 ASCII 0 Keyboard 1 Movement Numpad Keybinds 0 Fullscreen 2 Font 18/SmallcapsGlow Map View 76x50 Zoom Use 0% Tactical HUD 1 Map Filters NONE Filters NONE Steam 1 RUN: bc8f65fc-8e93-46c4-9744-e6f46b7c63cc